Workbook

Sheet Sheet1
A1: 序号 | B1: 学号 | C1: 姓名 | D1: 德育 | J1: 智育 | P1: 文体 | V1: 综合测评总分 | W1: 排名
D2: 基本分 | E2: 奖励分 | F2: 惩罚分 | G2: 个人德育分 | H2: 个人德育总分/基准 | I2: 德育总成绩 | J2: 基本成绩 | K2: 奖励分 | L2: 惩罚分 | M2: 个人智育分 | N2: 个人智育总分/基准 | O2: 智育总成绩 | P2: 基本分 | Q2: 奖励分 | R2: 惩罚分 | S2: 个人体育分 | T2: 个人体育总分/基准 | U2: 文体总成绩
A3: 1 | B3: 2021310205 | C3: 曹轶华 | D3: 96.89 | E3: 22.000 | F3: 0.000 | G3: 118.89 | H3: =G3/MAX($G$3:$G$59) -> 0.6819 | I3: =100*H3 -> 68.19 | J3: 89.90 | K3: 68.194 | L3: 0.000 | M3: 158.09 | N3: =M3/MAX($M$3:$M$59) -> 1.0000 | O3: =100*N3 -> 100.00 | P3: 100.00 | Q3: 0.00 | R3: 0.00 | S3: =P3+Q3 -> 100.00 | T3: =S3/MAX($S$3:$S$59) -> 0.8017 | U3: =100*T3 -> 80.17 | V3: =0.2*I3+0.7*O3+0.1*U3 -> 91.65 | W3: 1
A4: 2 | B4: 2021310232 | C4: 王源丰 | D4: 97.02 | E4: 16.000 | F4: 0.000 | G4: 113.02 | H4: 0.6482 | I4: 64.82 | J4: 84.77 | K4: 69.182 | L4: 0.000 | M4: 153.95 | N4: 0.9738 | O4: 97.38 | P4: 100.00 | Q4: 0.00 | R4: 0.00 | S4: 100.00 | T4: 0.8017 | U4: 80.17 | V4: 89.15 | W4: 2
A5: 3 | B5: 2021310227 | C5: 李博凤 | D5: 97.08 | E5: 0.000 | F5: 0.000 | G5: 97.08 | H5: 0.5568 | I5: 55.68 | J5: 87.70 | K5: 64.236 | L5: 0.000 | M5: 151.94 | N5: 0.9610 | O5: 96.10 | P5: 100.00 | Q5: 0.00 | R5: 0.00 | S5: 100.00 | T5: 0.8017 | U5: 80.17 | V5: 86.43 | W5: 3
A6: 4 | B6: 2021310233 | C6: 朱玉洁 | D6: 96.86 | E6: 6.500 | F6: 0.000 | G6: 103.36 | H6: 0.5928 | I6: 59.28 | J6: 89.90 | K6: 56.500 | L6: 0.000 | M6: =J6+K6 -> 146.40 | N6: 0.9260 | O6: 92.60 | P6: 100.00 | Q6: 0.00 | R6: 0.00 | S6: 100.00 | T6: 0.8017 | U6: 80.17 | V6: 84.69 | W6: 4
A7: 5 | B7: 2021315213 | C7: 胡文娅 | D7: 97.07 | E7: 14.200 | F7: 0.000 | G7: 111.27 | H7: 0.6382 | I7: 63.82 | J7: 87.73 | K7: 56.350 | L7: 0.000 | M7: 144.08 | N7: 0.9113 | O7: 91.13 | P7: 100.00 | Q7: 0.00 | R7: 0.00 | S7: 100.00 | T7: 0.8017 | U7: 80.17 | V7: 84.57 | W7: 5
A8: 6 | B8: 2021310243 | C8: 孙衍鹍 | D8: 96.68 | E8: 77.667 | F8: 0.000 | G8: 174.35 | H8: 1.0000 | I8: 100.00 | J8: 88.70 | K8: 31.800 | L8: 0.000 | M8: 120.50 | N8: 0.7622 | O8: 76.22 | P8: 100.00 | Q8: 10.00 | R8: 0.00 | S8: 110.00 | T8: 0.8818 | U8: 88.18 | V8: 82.17 | W8: 6
A9: 7 | B9: 2021310250 | C9: 万荫基 | D9: 97.85 | E9: 0.500 | F9: 0.000 | G9: 98.35 | H9: 0.5641 | I9: 56.41 | J9: 86.20 | K9: 50.000 | L9: 0.000 | M9: 136.20 | N9: 0.8615 | O9: 86.15 | P9: 100.00 | Q9: 0.00 | R9: 0.00 | S9: 100.00 | T9: 0.8017 | U9: 80.17 | V9: 79.60 | W9: 7
A10: 8 | B10: 2021310240 | C10: 冯博汉 | D10: 96.84 | E10: 3.000 | F10: 0.000 | G10: 99.84 | H10: 0.5727 | I10: 57.27 | J10: 76.00 | K10: 56.330 | L10: 0.000 | M10: 132.33 | N10: 0.8370 | O10: 83.70 | P10: 100.00 | Q10: 0.00 | R10: 0.00 | S10: 100.00 | T10: 0.8017 | U10: 80.17 | V10: 78.06 | W10: 8
A11: 9 | B11: 2021310242 | C11: 李奕菲 | D11: 96.83 | E11: 6.000 | F11: 0.000 | G11: 102.83 | H11: 0.5898 | I11: 58.98 | J11: 84.40 | K11: 41.750 | L11: 0.000 | M11: 126.15 | N11: 0.7979 | O11: 79.79 | P11: 100.00 | Q11: 6.70 | R11: 0.00 | S11: 106.70 | T11: 0.8554 | U11: 85.54 | V11: 76.21 | W11: 9
A12: 10 | B12: 2021310216 | C12: 蔡敏 | D12: 97.09 | E12: 4.000 | F12: 0.000 | G12: 101.09 | H12: 0.5798 | I12: 57.98 | J12: 86.64 | K12: 39.900 | L12: 0.000 | M12: 126.54 | N12: 0.8004 | O12: 80.04 | P12: 100.00 | Q12: 0.00 | R12: 0.00 | S12: 100.00 | T12: 0.8017 | U12: 80.17 | V12: 75.64 | W12: 10
A13: 11 | B13: 2021310201 | C13: 寇悦 | D13: 97.25 | E13: 17.600 | F13: 0.000 | G13: 114.85 | H13: 0.6587 | I13: 65.87 | J13: 87.00 | K13: 35.792 | L13: 0.000 | M13: 122.79 | N13: 0.7767 | O13: 77.67 | P13: 100.00 | Q13: 0.00 | R13: 0.00 | S13: 100.00 | T13: 0.8017 | U13: 80.17 | V13: 75.56 | W13: 11
A14: 12 | B14: 2021310214 | C14: 岳黎平 | D14: 96.79 | E14: 11.000 | F14: 0.000 | G14: 107.79 | H14: 0.6182 | I14: 61.82 | J14: 85.90 | K14: 35.750 | L14: 0.000 | M14: 121.65 | N14: 0.7695 | O14: 76.95 | P14: 100.00 | Q14: 0.00 | R14: 0.00 | S14: 100.00 | T14: 0.8017 | U14: 80.17 | V14: 74.24 | W14: 12
A15: 13 | B15: 2021310234 | C15: 高靖博 | D15: 96.84 | E15: 3.000 | F15: 0.000 | G15: 99.84 | H15: 0.5726 | I15: 57.26 | J15: 90.40 | K15: 32.725 | L15: 0.000 | M15: 123.13 | N15: 0.7788 | O15: 77.88 | P15: 100.00 | Q15: 0.00 | R15: 0.00 | S15: 100.00 | T15: 0.8017 | U15: 80.17 | V15: 73.99 | W15: 13
A16: 14 | B16: 2021310212 | C16: 刘继坤 | D16: 96.90 | E16: 0.000 | F16: 0.000 | G16: 96.90 | H16: 0.5558 | I16: 55.58 | J16: 83.20 | K16: 35.518 | L16: 0.000 | M16: 118.72 | N16: 0.7509 | O16: 75.09 | P16: 100.00 | Q16: 24.74 | R16: 0.00 | S16: 124.74 | T16: 1.0000 | U16: 100.00 | V16: 73.68 | W16: 14
A17: 15 | B17: 2021310245 | C17: 孙思远 | D17: 96.85 | E17: 26.787 | F17: 0.000 | G17: 123.64 | H17: 0.7091 | I17: 70.91 | J17: 88.00 | K17: 27.849 | L17: 0.000 | M17: 115.85 | N17: 0.7328 | O17: 73.28 | P17: 100.00 | Q17: 0.00 | R17: 0.00 | S17: 100.00 | T17: 0.8017 | U17: 80.17 | V17: 73.49 | W17: 15
A18: 16 | B18: 2021310239 | C18: 刘萌 | D18: 96.90 | E18: 3.000 | F18: 0.000 | G18: 99.90 | H18: 0.5730 | I18: 57.30 | J18: 90.80 | K18: 27.092 | L18: 0.000 | M18: 117.89 | N18: 0.7457 | O18: 74.57 | P18: 100.00 | Q18: 0.00 | R18: 0.00 | S18: 100.00 | T18: 0.8017 | U18: 80.17 | V18: 71.68 | W18: 16
A19: 17 | B19: 2021310215 | C19: 王存宁 | D19: 96.85 | E19: 4.000 | F19: 0.000 | G19: 100.85 | H19: 0.5784 | I19: 57.84 | J19: 91.88 | K19: 25.500 | L19: 0.000 | M19: 117.38 | N19: 0.7425 | O19: 74.25 | P19: 100.00 | Q19: 0.00 | R19: 0.00 | S19: 100.00 | T19: 0.8017 | U19: 80.17 | V19: 71.56 | W19: 17
A20: 18 | B20: 2021310238 | C20: 孔涛 | D20: 96.99 | E20: 0.000 | F20: 0.000 | G20: 96.99 | H20: 0.5563 | I20: 55.63 | J20: 89.30 | K20: 26.464 | L20: 0.000 | M20: 115.76 | N20: 0.7322 | O20: 73.22 | P20: 100.00 | Q20: 0.00 | R20: 0.00 | S20: 100.00 | T20: 0.8017 | U20: 80.17 | V20: 70.40 | W20: 18
A21: 19 | B21: 2021310246 | C21: 丁中振 | D21: 96.81 | E21: 11.000 | F21: 0.000 | G21: 107.81 | H21: 0.6184 | I21: 61.84 | J21: 82.70 | K21: 28.600 | L21: 0.000 | M21: 111.30 | N21: 0.7040 | O21: 70.40 | P21: 100.00 | Q21: 0.00 | R21: 0.00 | S21: 100.00 | T21: 0.8017 | U21: 80.17 | V21: 69.67 | W21: 19
A22: 20 | B22: 2021315207 | C22: 肖鹏 | D22: 96.69 | E22: 3.000 | F22: 0.000 | G22: 99.69 | H22: 0.5718 | I22: 57.18 | J22: 87.15 | K22: 23.900 | L22: 0.000 | M22: 111.05 | N22: 0.7024 | O22: 70.24 | P22: 100.00 | Q22: 0.00 | R22: 0.00 | S22: 100.00 | T22: 0.8017 | U22: 80.17 | V22: 68.62 | W22: 20
A23: 21 | B23: 2021310231 | C23: 李玉果 | D23: 96.84 | E23: 8.000 | F23: 0.000 | G23: 104.84 | H23: 0.6014 | I23: 60.14 | J23: 88.10 | K23: 19.221 | L23: 0.000 | M23: 107.32 | N23: 0.6788 | O23: 67.88 | P23: 100.00 | Q23: 0.00 | R23: 0.00 | S23: 100.00 | T23: 0.8017 | U23: 80.17 | V23: 67.56 | W23: 21
A24: 22 | B24: 2021310230 | C24: 解凌远 | D24: 96.90 | E24: 13.600 | F24: 0.000 | G24: 110.50 | H24: 0.6338 | I24: 63.38 | J24: 87.73 | K24: 17.406 | L24: 0.000 | M24: 105.14 | N24: 0.6650 | O24: 66.50 | P24: 100.00 | Q24: 0.00 | R24: 0.00 | S24: 100.00 | T24: 0.8017 | U24: 80.17 | V24: 67.25 | W24: 22
A25: 23 | B25: 2021310202 | C25: 陈弘男 | D25: 96.77 | E25: 6.000 | F25: 0.000 | G25: 102.77 | H25: 0.5895 | I25: 58.95 | J25: 91.40 | K25: 13.653 | L25: 0.000 | M25: 105.05 | N25: 0.6645 | O25: 66.45 | P25: 100.00 | Q25: 0.00 | R25: 0.00 | S25: 100.00 | T25: 0.8017 | U25: 80.17 | V25: 66.32 | W25: 23
A26: 24 | B26: 2021310207 | C26: 王奥诚 | D26: 96.74 | E26: 8.600 | F26: 0.000 | G26: 105.34 | H26: 0.6042 | I26: 60.42 | J26: 91.70 | K26: 12.611 | L26: 0.000 | M26: 104.31 | N26: 0.6598 | O26: 65.98 | P26: 100.00 | Q26: 0.00 | R26: 0.00 | S26: 100.00 | T26: 0.8017 | U26: 80.17 | V26: 66.29 | W26: 24
A27: 25 | B27: 2021310235 | C27: 张凌玮 | D27: 96.92 | E27: 5.000 | F27: 0.000 | G27: 101.92 | H27: 0.5846 | I27: 58.46 | J27: 91.90 | K27: 10.500 | L27: 0.000 | M27: 102.40 | N27: 0.6477 | O27: 64.77 | P27: 100.00 | Q27: 3.00 | R27: 0.00 | S27: 103.00 | T27: 0.8257 | U27: 82.57 | V27: 65.29 | W27: 25
A28: 26 | B28: 2021310226 | C28: 张奇 | D28: 96.82 | E28: 0.000 | F28: 0.000 | G28: 96.82 | H28: 0.5553 | I28: 55.53 | J28: 84.20 | K28: 20.000 | L28: 0.000 | M28: 104.20 | N28: 0.6591 | O28: 65.91 | P28: 100.00 | Q28: 0.00 | R28: 0.00 | S28: 100.00 | T28: 0.8017 | U28: 80.17 | V28: 65.26 | W28: 26
A29: 27 | B29: 2021310206 | C29: 曹潘 | D29: 97.65 | E29: 26.600 | F29: 0.000 | G29: 124.25 | H29: 0.7127 | I29: 71.27 | J29: 90.70 | K29: 0.600 | L29: 0.000 | M29: 91.30 | N29: 0.5775 | O29: 57.75 | P29: 100.00 | Q29: 0.00 | R29: 0.00 | S29: 100.00 | T29: 0.8017 | U29: 80.17 | V29: 62.70 | W29: 27
A30: 28 | B30: 2021310211 | C30: 刘琦 | D30: 96.91 | E30: 6.000 | F30: 0.000 | G30: 102.91 | H30: 0.5902 | I30: 59.02 | J30: 91.60 | K30: 4.650 | L30: 0.000 | M30: 96.25 | N30: 0.6088 | O30: 60.88 | P30: 100.00 | Q30: 0.00 | R30: 0.00 | S30: 100.00 | T30: 0.8017 | U30: 80.17 | V30: 62.44 | W30: 28
A31: 29 | B31: 2021310221 | C31: 王丽敏 | D31: 97.05 | E31: 0.000 | F31: 0.000 | G31: 97.05 | H31: 0.5567 | I31: 55.67 | J31: 93.10 | K31: 4.667 | L31: 0.000 | M31: 97.77 | N31: 0.6184 | O31: 61.84 | P31: 100.00 | Q31: 0.00 | R31: 0.00 | S31: 100.00 | T31: 0.8017 | U31: 80.17 | V31: 62.44 | W31: 29
A32: 30 | B32: 2021310251 | C32: 姜刘杉 | D32: 96.86 | E32: 4.000 | F32: 0.000 | G32: 100.86 | H32: 0.5785 | I32: 57.85 | J32: 86.90 | K32: 9.864 | L32: 0.000 | M32: 96.76 | N32: 0.6121 | O32: 61.21 | P32: 100.00 | Q32: 0.00 | R32: 0.00 | S32: 100.00 | T32: 0.8017 | U32: 80.17 | V32: 62.43 | W32: 30
A33: 31 | B33: 2021310228 | C33: 孙建辰 | D33: 96.97 | E33: 3.000 | F33: 0.000 | G33: 99.97 | H33: 0.5734 | I33: 57.34 | J33: 85.67 | K33: 9.500 | L33: 0.000 | M33: 95.17 | N33: 0.6020 | O33: 60.20 | P33: 100.00 | Q33: 0.00 | R33: 0.00 | S33: 100.00 | T33: 0.8017 | U33: 80.17 | V33: 61.62 | W33: 31
A34: 32 | B34: 2021310241 | C34: 蒋涛 | D34: 96.81 | E34: 3.000 | F34: 0.000 | G34: 99.81 | H34: 0.5725 | I34: 57.25 | J34: 93.10 | K34: 0.000 | L34: 0.000 | M34: 93.10 | N34: 0.5889 | O34: 58.89 | P34: 100.00 | Q34: 0.00 | R34: 0.00 | S34: 100.00 | T34: 0.8017 | U34: 80.17 | V34: 60.69 | W34: 32
A35: 33 | B35: 2021310204 | C35: 马秋伟 | D35: 96.78 | E35: 0.000 | F35: 0.000 | G35: 96.78 | H35: =G35/MAX($G$3:$G$59) -> 0.5551 | I35: =100*H35 -> 55.51 | J35: 86.60 | K35: 4.625 | L35: 0.000 | M35: 91.23 | N35: =M35/MAX($M$3:$M$59) -> 0.5770 | O35: =100*N35 -> 57.70 | P35: 100.00 | Q35: 0.00 | R35: 0.00 | S35: =P35+Q35 -> 100.00 | T35: =S35/MAX($S$3:$S$59) -> 0.8017 | U35: =100*T35 -> 80.17 | V35: =0.2*I35+0.7*O35+0.1*U35 -> 59.51 | W35: 33
A36: 34 | B36: 2021315211 | C36: 陶金泉 | D36: 96.80 | E36: 8.000 | F36: 0.000 | G36: 104.80 | H36: 0.6011 | I36: 60.11 | J36: 87.65 | K36: 0.100 | L36: 0.000 | M36: 87.75 | N36: 0.5550 | O36: 55.50 | P36: 100.00 | Q36: 7.00 | R36: 0.00 | S36: 107.00 | T36: 0.8578 | U36: 85.78 | V36: 59.45 | W36: 34
A37: 35 | B37: 2021310223 | C37: 金伟星 | D37: 96.67 | E37: 0.000 | F37: 0.000 | G37: 96.67 | H37: 0.5544 | I37: 55.44 | J37: 91.00 | K37: 0.000 | L37: 0.000 | M37: 91.00 | N37: 0.5756 | O37: 57.56 | P37: 100.00 | Q37: 0.00 | R37: 0.00 | S37: 100.00 | T37: 0.8017 | U37: 80.17 | V37: 59.40 | W37: 35
A38: 36 | B38: 2021310225 | C38: 邢梦可 | D38: 97.02 | E38: 3.400 | F38: 0.000 | G38: 100.42 | H38: 0.5760 | I38: 57.60 | J38: 89.50 | K38: 0.400 | L38: 0.000 | M38: 89.90 | N38: 0.5686 | O38: 56.86 | P38: 100.00 | Q38: 0.00 | R38: 0.00 | S38: 100.00 | T38: 0.8017 | U38: 80.17 | V38: 59.34 | W38: 36
A39: 37 | B39: 2021310203 | C39: 李傲 | D39: 96.78 | E39: 0.000 | F39: 0.000 | G39: 96.78 | H39: 0.5551 | I39: 55.51 | J39: 90.80 | K39: 0.000 | L39: 0.000 | M39: 90.80 | N39: 0.5743 | O39: 57.43 | P39: 100.00 | Q39: 0.00 | R39: 0.00 | S39: 100.00 | T39: 0.8017 | U39: 80.17 | V39: 59.32 | W39: 37
A40: 38 | B40: 2021310222 | C40: 高金明 | D40: 96.79 | E40: 0.000 | F40: 0.000 | G40: 96.79 | H40: 0.5552 | I40: 55.52 | J40: 90.70 | K40: 0.000 | L40: 0.000 | M40: 90.70 | N40: 0.5737 | O40: 57.37 | P40: 100.00 | Q40: 0.00 | R40: 0.00 | S40: 100.00 | T40: 0.8017 | U40: 80.17 | V40: 59.28 | W40: 38
A41: 39 | B41: 2021310217 | C41: 王有佳 | D41: 96.83 | E41: 0.000 | F41: 0.000 | G41: 96.83 | H41: 0.5554 | I41: 55.54 | J41: 90.24 | K41: 0.000 | L41: 0.000 | M41: 90.24 | N41: 0.5708 | O41: 57.08 | P41: 100.00 | Q41: 0.00 | R41: 0.00 | S41: 100.00 | T41: 0.8017 | U41: 80.17 | V41: 59.08 | W41: 39
A42: 40 | B42: 2021310208 | C42: 栾孟坤 | D42: 93.88 | E42: 0.000 | F42: 0.000 | G42: 93.88 | H42: 0.5384 | I42: 53.84 | J42: 91.00 | K42: 0.000 | L42: 0.000 | M42: 91.00 | N42: 0.5756 | O42: 57.56 | P42: 100.00 | Q42: 0.00 | R42: 0.00 | S42: 100.00 | T42: 0.8017 | U42: 80.17 | V42: 59.08 | W42: 40
A43: 41 | B43: 2021310220 | C43: 马瑞洁 | D43: 97.01 | E43: 3.600 | F43: 0.000 | G43: 100.61 | H43: 0.5771 | I43: 57.71 | J43: 89.17 | K43: 0.000 | L43: 0.000 | M43: 89.17 | N43: 0.5640 | O43: 56.40 | P43: 100.00 | Q43: 0.00 | R43: 0.00 | S43: 100.00 | T43: 0.8017 | U43: 80.17 | V43: 59.04 | W43: 41
A44: 42 | B44: 2021310253 | C44: 李蓉蓉 | D44: 96.83 | E44: 6.000 | F44: 0.000 | G44: 102.83 | H44: 0.5898 | I44: 58.98 | J44: 88.57 | K44: 0.000 | L44: 0.000 | M44: 88.57 | N44: 0.5602 | O44: 56.02 | P44: 100.00 | Q44: 0.00 | R44: 0.00 | S44: 100.00 | T44: 0.8017 | U44: 80.17 | V44: 59.03 | W44: 42
A45: 43 | B45: 2020310203 | C45: 李娟娟 | D45: 96.85 | E45: 0.000 | F45: 0.000 | G45: 96.85 | H45: 0.5555 | I45: 55.55 | J45: 90.00 | K45: 0.000 | L45: 0.000 | M45: 90.00 | N45: 0.5693 | O45: 56.93 | P45: 100.00 | Q45: 0.00 | R45: 0.00 | S45: 100.00 | T45: 0.8017 | U45: 80.17 | V45: 58.98 | W45: 43
A46: 44 | B46: 2021310252 | C46: 贾亦静 | D46: 96.73 | E46: 0.000 | F46: 0.000 | G46: 96.73 | H46: 0.5548 | I46: 55.48 | J46: 89.90 | K46: 0.000 | L46: 0.000 | M46: 89.90 | N46: 0.5686 | O46: 56.86 | P46: 100.00 | Q46: 0.00 | R46: 0.00 | S46: 100.00 | T46: 0.8017 | U46: 80.17 | V46: 58.92 | W46: 44
A47: 45 | B47: 2021310244 | C47: 杨扬 | D47: 97.22 | E47: 11.000 | F47: 0.000 | G47: 108.22 | H47: 0.6207 | I47: 62.07 | J47: 84.97 | K47: 1.477 | L47: 0.000 | M47: 86.44 | N47: 0.5468 | O47: 54.68 | P47: 100.00 | Q47: 0.00 | R47: 0.00 | S47: 100.00 | T47: 0.8017 | U47: 80.17 | V47: 58.71 | W47: 45
A48: 46 | B48: 2021310237 | C48: 付信格 | D48: 96.97 | E48: 2.000 | F48: 0.000 | G48: 98.97 | H48: 0.5677 | I48: 56.77 | J48: 88.80 | K48: 0.020 | L48: 0.000 | M48: 88.82 | N48: 0.5618 | O48: 56.18 | P48: 100.00 | Q48: 0.00 | R48: 0.00 | S48: 100.00 | T48: 0.8017 | U48: 80.17 | V48: 58.70 | W48: 46
A49: 47 | B49: 2021310236 | C49: 许顺年 | D49: 96.84 | E49: 0.000 | F49: 0.000 | G49: 96.84 | H49: 0.5555 | I49: 55.55 | J49: 88.80 | K49: 0.000 | L49: 0.000 | M49: 88.80 | N49: 0.5617 | O49: 56.17 | P49: 100.00 | Q49: 0.00 | R49: 0.00 | S49: 100.00 | T49: 0.8017 | U49: 80.17 | V49: 58.44 | W49: 47
A50: 48 | B50: 2021310219 | C50: 王陇豫 | D50: 96.74 | E50: 3.000 | F50: 0.000 | G50: 99.74 | H50: 0.5721 | I50: 57.21 | J50: 87.70 | K50: 0.000 | L50: 0.000 | M50: 87.70 | N50: 0.5547 | O50: 55.47 | P50: 100.00 | Q50: 0.00 | R50: 0.00 | S50: 100.00 | T50: 0.8017 | U50: 80.17 | V50: 58.29 | W50: 48
A51: 49 | B51: 2021310224 | C51: 关俊杰 | D51: 96.74 | E51: 0.000 | F51: 0.000 | G51: 96.74 | H51: 0.5549 | I51: 55.49 | J51: 88.40 | K51: 0.000 | L51: 0.000 | M51: 88.40 | N51: 0.5592 | O51: 55.92 | P51: 100.00 | Q51: 0.00 | R51: 0.00 | S51: 100.00 | T51: 0.8017 | U51: 80.17 | V51: 58.26 | W51: 49
A52: 50 | B52: 2021310254 | C52: 郑逸 | D52: 96.88 | E52: 3.000 | F52: 0.000 | G52: 99.88 | H52: 0.5729 | I52: 57.29 | J52: 87.20 | K52: 0.100 | L52: 0.000 | M52: 87.30 | N52: 0.5522 | O52: 55.22 | P52: 100.00 | Q52: 0.00 | R52: 0.00 | S52: 100.00 | T52: 0.8017 | U52: 80.17 | V52: 58.13 | W52: 50
A53: 51 | B53: 2021310218 | C53: 回天力 | D53: 96.93 | E53: 0.000 | F53: 0.000 | G53: 96.93 | H53: 0.5560 | I53: 55.60 | J53: 87.70 | K53: 0.000 | L53: 0.000 | M53: 87.70 | N53: 0.5547 | O53: 55.47 | P53: 100.00 | Q53: 0.00 | R53: 0.00 | S53: 100.00 | T53: 0.8017 | U53: 80.17 | V53: 57.97 | W53: 51
A54: 52 | B54: 2021310229 | C54: 马跃 | D54: 96.89 | E54: 0.000 | F54: 0.000 | G54: 96.89 | H54: 0.5557 | I54: 55.57 | J54: 82.40 | K54: 5.285 | L54: 0.000 | M54: 87.69 | N54: 0.5546 | O54: 55.46 | P54: 100.00 | Q54: 0.00 | R54: 0.00 | S54: 100.00 | T54: 0.8017 | U54: 80.17 | V54: 57.96 | W54: 52
A55: 53 | B55: 2021310213 | C55: 杨晔 | D55: 96.86 | E55: 7.600 | F55: 0.000 | G55: 104.46 | H55: 0.5991 | I55: 59.91 | J55: 80.64 | K55: 1.500 | L55: 0.000 | M55: 82.14 | N55: 0.5196 | O55: 51.96 | P55: 100.00 | Q55: 0.00 | R55: 0.00 | S55: 100.00 | T55: 0.8017 | U55: 80.17 | V55: 56.37 | W55: 53
A56: 54 | B56: 2021315212 | C56: 刘启 | D56: 96.91 | E56: 3.000 | F56: 0.000 | G56: 99.91 | H56: 0.5731 | I56: 57.31 | J56: 82.88 | K56: 0.000 | L56: 0.000 | M56: 82.88 | N56: 0.5242 | O56: 52.42 | P56: 100.00 | Q56: 0.00 | R56: 0.00 | S56: 100.00 | T56: 0.8017 | U56: 80.17 | V56: 56.17 | W56: 54
A57: 55 | B57: 2021310248 | C57: 罗伊雯 | D57: 96.88 | E57: 0.000 | F57: 0.000 | G57: 96.88 | H57: 0.5557 | I57: 55.57 | J57: 80.70 | K57: 0.000 | L57: 0.000 | M57: 80.70 | N57: 0.5105 | O57: 51.05 | P57: 100.00 | Q57: 0.00 | R57: 0.00 | S57: 100.00 | T57: 0.8017 | U57: 80.17 | V57: 54.86 | W57: 55
A58: 56 | B58: 2021310209 | C58: 李俊 | D58: 0.00 | E58: 0.000 | F58: 0.000 | G58: 0.00 | H58: 0.0000 | I58: 0.00 | J58: 0.00 | K58: 0.000 | L58: 0.000 | M58: 0.00 | N58: 0.0000 | O58: 0.00 | P58: 100.00 | Q58: 0.00 | R58: 0.00 | S58: 100.00 | T58: 0.8017 | U58: 80.17 | V58: 8.02 | W58: 56
A59: 57 | B59: 2021310210 | C59: 杨梅 | D59: 0.00 | E59: 0.000 | F59: 0.000 | G59: 0.00 | H59: 0.0000 | I59: 0.00 | J59: 0.00 | K59: 0.000 | L59: 0.000 | M59: 0.00 | N59: 0.0000 | O59: 0.00 | P59: 100.00 | Q59: 0.00 | R59: 0.00 | S59: 100.00 | T59: 0.8017 | U59: 80.17 | V59: 8.02 | W59: 57
